[Event "48th Indian U15-ch Open 2023"]
[Site "Jalgaon"]
[Date "2023.12.27"]
[Round "1.8"]
[White "Maaz Iqubal"]
[Black "Ankit Ray"]
[Result "0-1"]
[WhiteElo "1416"]
[BlackElo "1898"]
[PlyCount "80"]
[EventDate "2023.12.30"]
[EventType "swiss"]
[EventCountry "IND"]
[TimeControl "5400+30"]

1. e4 {[%emt 0:00:29]} c5 {[%emt 0:00:11]} 2. Nf3 {[%emt 0:00:47]} e6 {[%emt 0:00:09]} 3. d4 {[%emt 0:00:29]} cxd4 {[%emt 0:00:08]} 4. Nxd4 {[%emt 0:00:30]} Nc6 {[%emt 0:00:09]} 5. Nc3 {[%emt 0:01:46]} Qc7 {[%emt 0:00:34]} 6. Be3 {[%emt 0:01:58]} a6 {[%emt 0:00:21]} 7. Be2 {[%emt 0:03:04]} Nf6 {[%emt 0:00:30]} 8. Qd2 {[%emt 0:05:20]} Bb4 {[%emt 0:00:56]} 9. f3 {[%emt 0:13:43]} d5 {[%emt 0:00:32]} 10. Nxc6 {[%emt 0:03:08]} bxc6 {[%emt 0:02:37]} 11. a3 {[%emt 0:07:05]} Bd6 {[%emt 0:03:14]} 12. g3 {[%emt 0:14:38]} Bb7 {[%emt 0:00:45]} 13. O-O-O {[%emt 0:08:34]} e5 {[%emt 0:14:26]} 14. Bg5 {[%emt 0:04:21]} d4 {[%emt 0:02:56]} 15. Bxf6 {[%emt 0:02:17]} gxf6 {[%emt 0:00:07]} 16. Nb1 {[%emt 0:02:42]} Bc8 {[%emt 0:00:16]} 17. Bc4 {[%emt 0:01:35]} Rb8 {[%emt 0:07:07]} 18. b3 {[%emt 0:04:59]} a5 {[%emt 0:02:41]} 19. a4 {[%emt 0:01:21]} Bb4 {[%emt 0:03:02]} 20. Qd3 {[%emt 0:01:03]} Qd6 {[%emt 0:02:17]} 21. g4 {[%emt 0:03:03]} Be6 {[%emt 0:03:54]} 22. Rdf1 {[%emt 0:03:28]} Ke7 {[%emt 0:10:47]} 23. Kd1 {[%emt 0:03:06]} Bxc4 {[%emt 0:01:26]} 24. Qxc4 {[%emt 0:00:23]} Qe6 {[%emt 0:00:57]} 25. Qd3 {[%emt 0:02:32]} c5 {[%emt 0:03:02]} 26. Nd2 {[%emt 0:03:42]} Bxd2 {[%emt 0:00:13]} 27. Kxd2 {[%emt 0:00:54]} Rb4 {[%emt 0:00:10]} 28. Rb1 {[%emt 0:02:22]} Rhb8 {[%emt 0:00:25]} 29. Ra1 {[%emt 0:02:48]} Rc8 {[%emt 0:03:23]} 30. Rhb1 {[%emt 0:01:25]} Qb6 {[%emt 0:00:12]} 31. Kc1 {[%emt 0:01:56]} Rb8 {[%emt 0:00:16]} 32. Ra3 {[%emt 0:00:29]} c4 {[%emt 0:00:09]} 33. Qd2 {[%emt 0:00:27]} Qc5 {[%emt 0:00:05]} 34. Kd1 {[%emt 0:00:26]} R4b6 {[%emt 0:02:12]} 35. Qc1 {[%emt 0:00:28]} Rd8 {[%emt 0:04:21]} 36. Ra2 {[%emt 0:00:38]} d3 {[%emt 0:00:43]} 37. cxd3 {[%emt 0:00:32]} Qg1+ {[%emt 0:00:08]} 38. Kc2 {[%emt 0:00:23]} cxb3+ {[%emt 0:00:06]} 39. Rxb3 {[%emt 0:00:13]} Rc8+ {[%emt 0:00:20]} 40. Rc3 {[%emt 0:00:18]} Rxc3+ {[%emt 0:00:03]} 0-1

[Event "48th Indian U15-ch Open 2023"]
[Site "Jalgaon"]
[Date "2023.12.27"]
[Round "1.9"]
[White "Nirnay Garg"]
[Black "Chavan Aditya"]
[Result "0-1"]
[WhiteElo "1894"]
[BlackElo "1411"]
[PlyCount "110"]
[EventDate "2023.12.30"]
[EventType "swiss"]
[EventCountry "IND"]
[TimeControl "5400+30"]

1. d4 {[%emt 0:00:40]} Nf6 {[%emt 0:00:06]} 2. Nf3 {[%emt 0:00:07]} d5 {[%emt 0:00:05]} 3. c3 {[%emt 0:00:07]} c6 {[%emt 0:00:05]} 4. Bf4 {[%emt 0:00:12]} Bf5 {[%emt 0:00:06]} 5. e3 {[%emt 0:01:02]} e6 {[%emt 0:00:05]} 6. Bd3 {[%emt 0:00:27]} Bg6 {[%emt 0:00:08]} 7. O-O {[%emt 0:01:16]} Bd6 {[%emt 0:00:11]} 8. Ne5 {[%emt 0:00:15]} Qc7 {[%emt 0:00:15]} 9. Nxg6 {[%emt 0:01:47]} hxg6 {[%emt 0:00:07]} 10. Bxd6 {[%emt 0:04:07]} Qxd6 {[%emt 0:00:05]} 11. f4 {[%emt 0:01:23]} Nbd7 {[%emt 0:01:18]} 12. Nd2 {[%emt 0:01:47]} g5 {[%emt 0:02:02]} 13. Qf3 {[%emt 0:05:22]} gxf4 {[%emt 0:01:46]} 14. exf4 {[%emt 0:00:57]} g5 {[%emt 0:06:11]} 15. Rae1 {[%emt 0:06:06]} gxf4 {[%emt 0:08:13]} 16. Qxf4 {[%emt 0:02:01]} Qxf4 {[%emt 0:01:06]} 17. Rf2 {[%emt 0:00:03]} Qf3 18. Rxf3 {[%emt 0:00:31]} Ke7 {[%emt 0:00:47]} 19. Rf4 {[%emt 0:02:06]} Rad8 {[%emt 0:03:12]} 20. Nf3 Rdg8 {[%emt 0:00:00]} 21. Rf1 {[%emt 0:05:52]} Rg4 {[%emt 0:11:56]} 22. Rxg4 {[%emt 0:01:52]} Nxg4 {[%emt 0:00:05]} 23. h3 {[%emt 0:02:23]} Ngf6 {[%emt 0:02:23]} 24. Kf2 {[%emt 0:01:41]} Ne4+ {[%emt 0:11:50]} 25. Ke3 {[%emt 0:02:12]} f5 {[%emt 0:01:39]} 26. Rh1 {[%emt 0:03:28]} Ng3 {[%emt 0:04:56]} 27. Re1 {[%emt 0:02:11]} Nf6 {[%emt 0:02:49]} 28. Ne5 {[%emt 0:02:40]} Rg8 {[%emt 0:01:54]} 29. Kf3 {[%emt 0:05:24]} Nge4 {[%emt 0:01:19]} 30. g4 {[%emt 0:01:40]} Ng5+ {[%emt 0:06:06]} 31. Kg2 {[%emt 0:06:07]} Nge4 {[%emt 0:01:33]} 32. Be2 {[%emt 0:03:19]} Nh5 {[%emt 0:07:36]} 33. Kh2 {[%emt 0:08:48]} Nf4 {[%emt 0:01:20]} 34. Bf1 {[%emt 0:06:10]} Ng6 {[%emt 0:01:32]} 35. Nxg6+ {[%emt 0:02:51]} Rxg6 {[%emt 0:00:10]} 36. Be2 {[%emt 0:01:01]} fxg4 {[%emt 0:08:13]} 37. Bxg4 {[%emt 0:02:07]} Rf6 {[%emt 0:00:17]} 38. Kg1 {[%emt 0:00:23]} Rg6 {[%emt 0:00:56]} 39. Kh2 {[%emt 0:02:08]} Rf6 {[%emt 0:00:10]} 40. Rg1 {[%emt 0:00:11]} Kd6 {[%emt 0:06:34]} 41. h4 {[%emt 0:01:14]} Rh6 {[%emt 0:00:29]} 42. Bh3 {[%emt 0:02:51]} Rxh4 {[%emt 0:00:40]} 43. Rg6 {[%emt 0:09:25]} Nf2 {[%emt 0:00:37]} 44. Rxe6+ {[%emt 0:01:34]} Kc7 {[%emt 0:00:06]} 45. Kg3 {[%emt 0:03:36]} Rxh3+ {[%emt 0:00:14]} 46. Kxf2 {[%emt 0:00:11]} Rh2+ {[%emt 0:00:02]} 47. Kf3 {[%emt 0:00:28]} Rxb2 {[%emt 0:00:06]} 48. Re2 {[%emt 0:00:04]} Rxe2 {[%emt 0:00:05]} 49. Kxe2 {[%emt 0:00:02]} Kd6 {[%emt 0:00:04]} 50. Kf3 {[%emt 0:01:20]} c5 {[%emt 0:00:05]} 51. Kf4 {[%emt 0:01:03]} cxd4 {[%emt 0:00:04]} 52. cxd4 {[%emt 0:00:02]} b5 {[%emt 0:00:04]} 53. Ke3 {[%emt 0:00:19]} a5 {[%emt 0:00:04]} 54. Kd2 {[%emt 0:00:21]} Ke6 {[%emt 0:00:05]} 55. a3 {[%emt 0:00:09]} Kf5 {[%emt 0:00:03]} 0-1

[Event "48th Indian U15-ch Open 2023"]
[Site "Jalgaon"]
[Date "2023.12.27"]
[Round "1.10"]
[White "Singhal Keshav"]
[Black "Jihan Tejas Shah"]
[Result "0-1"]
[WhiteElo "1407"]
[BlackElo "1891"]
[PlyCount "60"]
[EventDate "2023.12.30"]
[EventType "swiss"]
[EventCountry "IND"]
[TimeControl "5400+30"]

1. e4 {[%emt 0:00:04]} c5 {[%emt 0:00:20]} 2. Nf3 {[%emt 0:00:18]} Nc6 {[%emt 0:00:05]} 3. c3 {[%emt 0:02:43]} Nf6 {[%emt 0:01:25]} 4. Bd3 {[%emt 0:01:13]} e5 {[%emt 0:02:15]} 5. Bc2 {[%emt 0:00:53]} d5 {[%emt 0:01:45]} 6. exd5 {[%emt 0:03:48]} Qxd5 {[%emt 0:02:19]} 7. d3 {[%emt 0:02:06]} Bf5 {[%emt 0:05:42]} 8. O-O {[%emt 0:02:54]} O-O-O {[%emt 0:02:52]} 9. Bb3 {[%emt 0:16:11]} Qxd3 {[%emt 0:07:20]} 10. Qxd3 {[%emt 0:00:16]} Bxd3 {[%emt 0:00:09]} 11. Re1 {[%emt 0:00:19]} c4 {[%emt 0:01:39]} 12. Ba4 {[%emt 0:00:30]} Bd6 {[%emt 0:00:11]} 13. Bg5 {[%emt 0:00:57]} Rhe8 {[%emt 0:02:56]} 14. Nbd2 {[%emt 0:01:52]} a6 {[%emt 0:04:12]} 15. Bxc6 {[%emt 0:13:55]} bxc6 {[%emt 0:00:05]} 16. Re3 {[%emt 0:10:01]} Nd5 {[%emt 0:09:56]} 17. Rxd3 {[%emt 0:14:00]} cxd3 {[%emt 0:01:12]} 18. Bxd8 {[%emt 0:00:15]} Kxd8 {[%emt 0:04:07]} 19. Ne4 {[%emt 0:01:25]} Kc7 {[%emt 0:01:23]} 20. Rd1 {[%emt 0:02:05]} f5 {[%emt 0:02:56]} 21. Nxd6 {[%emt 0:00:31]} Kxd6 {[%emt 0:00:07]} 22. c4 {[%emt 0:00:24]} Nf4 {[%emt 0:00:48]} 23. g3 {[%emt 0:00:35]} Ne2+ {[%emt 0:00:28]} 24. Kf1 {[%emt 0:00:45]} e4 {[%emt 0:00:06]} 25. Ne1 {[%emt 0:00:12]} Kc5 {[%emt 0:01:22]} 26. b3 {[%emt 0:00:56]} Kb4 {[%emt 0:01:34]} 27. f3 {[%emt 0:01:52]} Nd4 {[%emt 0:01:09]} 28. fxe4 {[%emt 0:04:40]} fxe4 {[%emt 0:00:40]} 29. Kg2 {[%emt 0:00:08]} Nc2 {[%emt 0:00:27]} 30. Kf2 {[%emt 0:00:33]} e3+ {[%emt 0:00:37]} 0-1

[Event "48th Indian U15-ch Open 2023"]
[Site "Jalgaon"]
[Date "2023.12.28"]
[Round "2.1"]
[White "Snehaal Roy"]
[Black "Mayank Chakraborty"]
[Result "0-1"]
[WhiteElo "1654"]
[BlackElo "2403"]
[PlyCount "100"]
[EventDate "2023.12.30"]
[EventType "swiss"]
[EventCountry "IND"]
[TimeControl "5400+30"]

1. e4 {[%emt 0:00:32]} e5 {[%emt 0:00:03]} 2. Nf3 {[%emt 0:00:15]} Nc6 {[%emt 0:00:02]} 3. c3 {[%emt 0:00:25]} d5 {[%emt 0:00:40]} 4. Qa4 {[%emt 0:00:27]} dxe4 {[%emt 0:04:14]} 5. Nxe5 {[%emt 0:00:44]} Qd5 {[%emt 0:01:23]} 6. Nxc6 {[%emt 0:00:22]} bxc6 {[%emt 0:00:06]} 7. Bc4 {[%emt 0:00:08]} Qd6 {[%emt 0:03:19]} 8. O-O {[%emt 0:00:39]} Nf6 {[%emt 0:01:17]} 9. d4 {[%emt 0:04:48]} Be7 {[%emt 0:04:35]} 10. Re1 {[%emt 0:01:49]} O-O {[%emt 0:01:24]} 11. Nd2 {[%emt 0:07:18]} Bf5 {[%emt 0:05:20]} 12. f3 {[%emt 0:07:51]} exf3 {[%emt 0:11:53]} 13. Nxf3 {[%emt 0:01:42]} Be4 {[%emt 0:01:43]} 14. Ne5 {[%emt 0:04:08]} c5 {[%emt 0:02:23]} 15. Bf4 {[%emt 0:00:23]} Qb6 {[%emt 0:00:46]} 16. Qb3 {[%emt 0:01:47]} Qxb3 {[%emt 0:01:23]} 17. Bxb3 {[%emt 0:00:33]} cxd4 {[%emt 0:03:14]} 18. cxd4 {[%emt 0:00:16]} Bb4 {[%emt 0:02:39]} 19. Rec1 {[%emt 0:20:11]} Ba5 {[%emt 0:18:12]} 20. Nc4 {[%emt 0:01:54]} Bb6 {[%emt 0:02:00]} 21. Nxb6 {[%emt 0:00:09]} cxb6 {[%emt 0:00:04]} 22. Be5 {[%emt 0:00:14]} a5 {[%emt 0:12:02]} 23. Re1 {[%emt 0:07:56]} Rfe8 {[%emt 0:04:40]} 24. Bxf6 {[%emt 0:00:26]} gxf6 {[%emt 0:00:01]} 25. Rxe4 {[%emt 0:00:12]} Rxe4 {[%emt 0:00:01]} 26. Bd5 {[%emt 0:00:09]} Rae8 {[%emt 0:00:02]} 27. Bxe4 {[%emt 0:00:11]} Rxe4 {[%emt 0:00:01]} 28. Rd1 {[%emt 0:00:10]} Re2 {[%emt 0:00:26]} 29. d5 {[%emt 0:06:51]} Kf8 {[%emt 0:00:05]} 30. Rf1 {[%emt 0:05:30]} Ke7 {[%emt 0:10:42]} 31. Rf2 {[%emt 0:00:18]} Re1+ {[%emt 0:00:23]} 32. Rf1 {[%emt 0:00:07]} Rxf1+ {[%emt 0:00:45]} 33. Kxf1 {[%emt 0:00:06]} Kd6 {[%emt 0:00:05]} 34. Ke2 {[%emt 0:00:03]} Kxd5 {[%emt 0:00:05]} 35. Kd3 {[%emt 0:00:08]} b5 {[%emt 0:01:44]} 36. a3 {[%emt 0:06:29]} f5 {[%emt 0:00:29]} 37. g3 {[%emt 0:00:56]} a4 {[%emt 0:04:36]} 38. Kc3 {[%emt 0:00:28]} f4 {[%emt 0:01:58]} 39. gxf4 {[%emt 0:00:08]} Ke4 {[%emt 0:00:01]} 40. Kb4 {[%emt 0:00:06]} Kxf4 {[%emt 0:00:05]} 41. Kxb5 {[%emt 0:00:03]} f5 {[%emt 0:00:11]} 42. Kxa4 {[%emt 0:00:04]} Ke4 {[%emt 0:00:17]} 43. b4 {[%emt 0:00:08]} f4 {[%emt 0:00:06]} 44. b5 {[%emt 0:00:02]} Kd5 {[%emt 0:00:07]} 45. Ka5 {[%emt 0:01:44]} f3 {[%emt 0:00:02]} 46. b6 {[%emt 0:00:01]} Kc6 {[%emt 0:00:07]} 47. Ka6 {[%emt 0:00:02]} f2 {[%emt 0:00:05]} 48. b7 {[%emt 0:00:01]} f1=Q+ {[%emt 0:00:06]} 49. Ka7 {[%emt 0:00:02]} Qb5 {[%emt 0:00:11]} 50. b8=Q {[%emt 0:00:06]} Qa4# {[%emt 0:00:03]} 0-1

[Event "48th Indian U15-ch Open 2023"]
[Site "Jalgaon"]
[Date "2023.12.28"]
[Round "2.2"]
[White "Shaik Sumer Arsh"]
[Black "Niladri Banerjee"]
[Result "1-0"]
[WhiteElo "2255"]
[BlackElo "1651"]
[PlyCount "77"]
[EventDate "2023.12.30"]
[EventType "swiss"]
[EventCountry "IND"]
[TimeControl "5400+30"]

1. d4 {[%emt 0:00:08]} Nf6 {[%emt 0:00:07]} 2. c4 {[%emt 0:00:09]} g6 {[%emt 0:00:06]} 3. Nc3 {[%emt 0:00:07]} Bg7 {[%emt 0:00:07]} 4. e4 {[%emt 0:00:05]} d6 {[%emt 0:00:06]} 5. Nf3 {[%emt 0:00:04]} O-O {[%emt 0:00:09]} 6. Be2 {[%emt 0:00:04]} e5 {[%emt 0:00:37]} 7. Be3 {[%emt 0:00:06]} Nbd7 {[%emt 0:00:07]} 8. O-O {[%emt 0:00:07]} Re8 {[%emt 0:00:06]} 9. d5 {[%emt 0:01:00]} h6 {[%emt 0:02:43]} 10. Nd2 {[%emt 0:03:23]} g5 {[%emt 0:03:14]} 11. b4 {[%emt 0:05:23]} Nf8 {[%emt 0:01:43]} 12. c5 {[%emt 0:03:01]} Ng6 {[%emt 0:02:36]} 13. Nc4 {[%emt 0:01:59]} b6 {[%emt 0:02:54]} 14. cxd6 {[%emt 0:02:06]} cxd6 {[%emt 0:00:22]} 15. a4 {[%emt 0:01:25]} Nf4 {[%emt 0:01:02]} 16. f3 {[%emt 0:01:59]} Qd7 {[%emt 0:06:02]} 17. Rf2 {[%emt 0:16:46]} Bb7 {[%emt 0:04:06]} 18. Bf1 {[%emt 0:02:30]} g4 {[%emt 0:01:13]} 19. Nb5 {[%emt 0:13:33]} Ba6 {[%emt 0:01:42]} 20. Nbxd6 {[%emt 0:05:10]} Bxc4 {[%emt 0:00:16]} 21. Nxe8 {[%emt 0:06:40]} Qxe8 {[%emt 0:11:40]} 22. Bxc4 {[%emt 0:00:14]} h5 {[%emt 0:04:34]} 23. Bb5 {[%emt 0:03:58]} Qd8 {[%emt 0:00:58]} 24. Bxf4 {[%emt 0:06:41]} exf4 {[%emt 0:00:22]} 25. Rd2 {[%emt 0:07:04]} Qd6 {[%emt 0:05:46]} 26. Rc1 {[%emt 0:01:19]} Kh7 {[%emt 0:03:03]} 27. Qc2 {[%emt 0:01:18]} Qe5 {[%emt 0:02:34]} 28. Qc7 {[%emt 0:00:23]} Qg5 {[%emt 0:03:30]} 29. d6 {[%emt 0:04:17]} gxf3 {[%emt 0:05:02]} 30. d7 {[%emt 0:02:31]} Ng4 {[%emt 0:00:49]} 31. d8=Q {[%emt 0:01:22]} Rxd8 {[%emt 0:01:21]} 32. Qxd8 {[%emt 0:00:02]} f2+ {[%emt 0:00:07]} 33. Kh1 {[%emt 0:00:05]} Bf6 {[%emt 0:00:33]} 34. Qd5 {[%emt 0:02:00]} Qh4 {[%emt 0:00:37]} 35. Qxf7+ {[%emt 0:00:16]} Kh6 {[%emt 0:01:33]} 36. Qf8+ {[%emt 0:00:18]} Kg5 {[%emt 0:02:54]} 37. Rd5+ {[%emt 0:00:01]} Ne5 {[%emt 0:00:18]} 38. Rxe5+ {[%emt 0:00:03]} Bxe5 {[%emt 0:00:27]} 39. Qf5+ {[%emt 0:00:02]} 1-0

[Event "48th Indian U15-ch Open 2023"]
[Site "Jalgaon"]
[Date "2023.12.28"]
[Round "2.3"]
[White "Anirudh R"]
[Black "Md Imran"]
[Result "0-1"]
[WhiteElo "1621"]
[BlackElo "2174"]
[PlyCount "60"]
[EventDate "2023.12.30"]
[EventType "swiss"]
[EventCountry "IND"]
[TimeControl "5400+30"]

1. d4 {[%emt 0:00:24]} Nf6 {[%emt 0:00:15]} 2. Bf4 {[%emt 0:00:12]} c5 {[%emt 0:00:12]} 3. e3 {[%emt 0:00:09]} cxd4 {[%emt 0:00:08]} 4. exd4 {[%emt 0:00:03]} Qb6 {[%emt 0:00:22]} 5. Na3 {[%emt 0:02:00]} Nd5 {[%emt 0:00:10]} 6. Bc1 {[%emt 0:00:28]} e6 {[%emt 0:00:07]} 7. Nc4 {[%emt 0:00:51]} Qc7 {[%emt 0:00:04]} 8. Nf3 {[%emt 0:01:27]} b6 {[%emt 0:00:12]} 9. Ne3 {[%emt 0:11:29]} Nxe3 {[%emt 0:00:03]} 10. Bxe3 {[%emt 0:00:11]} Bb7 {[%emt 0:00:12]} 11. Be2 {[%emt 0:01:47]} Nc6 {[%emt 0:00:02]} 12. Qd2 {[%emt 0:00:59]} Nb4 {[%emt 0:02:31]} 13. c4 {[%emt 0:10:48]} Rd8 {[%emt 0:09:58]} 14. a3 {[%emt 0:01:42]} Bxf3 {[%emt 0:00:37]} 15. gxf3 {[%emt 0:04:34]} Nc6 {[%emt 0:01:27]} 16. Rc1 {[%emt 0:16:11]} Bd6 {[%emt 0:05:56]} 17. Rg1 {[%emt 0:03:04]} g6 {[%emt 0:03:37]} 18. h4 {[%emt 0:05:05]} O-O {[%emt 0:01:28]} 19. h5 {[%emt 0:03:08]} e5 {[%emt 0:00:57]} 20. d5 {[%emt 0:02:00]} Nd4 {[%emt 0:00:09]} 21. Bg5 {[%emt 0:09:27]} Rde8 {[%emt 0:06:41]} 22. Qd3 {[%emt 0:04:18]} f5 {[%emt 0:01:04]} 23. hxg6 {[%emt 0:04:23]} hxg6 {[%emt 0:00:03]} 24. Be3 {[%emt 0:02:57]} Kf7 {[%emt 0:01:11]} 25. Kd2 {[%emt 0:01:15]} Rh8 {[%emt 0:05:04]} 26. Rg2 {[%emt 0:03:20]} Nxe2 {[%emt 0:05:48]} 27. Kxe2 {[%emt 0:00:26]} e4 {[%emt 0:00:35]} 28. fxe4 {[%emt 0:03:05]} Rxe4 {[%emt 0:00:02]} 29. f3 {[%emt 0:03:35]} Rxe3+ {[%emt 0:00:31]} 30. Kxe3 {[%emt 0:00:27]} Bf4+ {[%emt 0:00:11]} 0-1

[Event "48th Indian U15-ch Open 2023"]
[Site "Jalgaon"]
[Date "2023.12.28"]
[Round "2.4"]
[White "Vignesh Advaith Vemula"]
[Black "Yashwant B"]
[Result "1/2-1/2"]
[WhiteElo "2028"]
[BlackElo "1627"]
[PlyCount "77"]
[EventDate "2023.12.30"]
[EventType "swiss"]
[EventCountry "IND"]
[TimeControl "5400+30"]

1. e4 {[%emt 0:00:04]} c5 {[%emt 0:00:29]} 2. Nf3 {[%emt 0:00:08]} d6 {[%emt 0:00:08]} 3. d4 {[%emt 0:00:06]} cxd4 {[%emt 0:00:06]} 4. Nxd4 {[%emt 0:00:07]} Nf6 {[%emt 0:00:09]} 5. Nc3 {[%emt 0:00:08]} a6 {[%emt 0:00:12]} 6. Be3 {[%emt 0:00:11]} e5 {[%emt 0:00:33]} 7. Nb3 {[%emt 0:00:08]} Be6 {[%emt 0:00:13]} 8. f3 {[%emt 0:00:13]} Nbd7 {[%emt 0:00:17]} 9. Qd2 {[%emt 0:00:08]} b5 {[%emt 0:00:17]} 10. O-O-O {[%emt 0:00:34]} Be7 {[%emt 0:02:12]} 11. g4 {[%emt 0:01:35]} Nb6 {[%emt 0:03:34]} 12. g5 {[%emt 0:00:42]} Nfd7 {[%emt 0:02:29]} 13. Na5 {[%emt 0:01:12]} Qc7 {[%emt 0:01:12]} 14. Nd5 {[%emt 0:00:42]} Bxd5 {[%emt 0:03:03]} 15. exd5 {[%emt 0:00:07]} Rc8 {[%emt 0:01:16]} 16. Kb1 {[%emt 0:01:56]} O-O {[%emt 0:16:41]} 17. h4 {[%emt 0:04:00]} Nxd5 {[%emt 0:07:42]} 18. Qxd5 {[%emt 0:00:57]} Qxa5 {[%emt 0:00:14]} 19. Bd3 {[%emt 0:08:24]} Nc5 {[%emt 0:19:41]} 20. Bxc5 {[%emt 0:02:05]} dxc5 {[%emt 0:02:02]} 21. Qxe5 {[%emt 0:10:36]} Rfe8 {[%emt 0:04:43]} 22. h5 {[%emt 0:03:50]} Bf8 {[%emt 0:07:15]} 23. Qf4 {[%emt 0:06:21]} Qc7 {[%emt 0:02:01]} 24. Qh4 {[%emt 0:09:36]} c4 {[%emt 0:03:03]} 25. Be4 {[%emt 0:01:22]} c3 {[%emt 0:00:39]} 26. g6 {[%emt 0:03:07]} fxg6 {[%emt 0:06:54]} 27. hxg6 {[%emt 0:05:48]} h6 {[%emt 0:01:52]} 28. Bd5+ {[%emt 0:06:09]} Kh8 {[%emt 0:00:12]} 29. Qd4 {[%emt 0:00:47]} Qe5 {[%emt 0:00:36]} 30. bxc3 {[%emt 0:02:58]} Rxc3 {[%emt 0:00:43]} 31. Bf7 {[%emt 0:00:30]} Qxd4 {[%emt 0:00:17]} 32. Rxd4 {[%emt 0:00:04]} Rec8 {[%emt 0:00:55]} 33. Be6 {[%emt 0:02:52]} Re8 {[%emt 0:00:50]} 34. Bf7 {[%emt 0:01:04]} Rec8 {[%emt 0:00:11]} 35. Rd7 {[%emt 0:03:08]} Rxc2 {[%emt 0:02:57]} 36. Be6 {[%emt 0:00:34]} R2c7 {[%emt 0:00:57]} 37. Rxc7 {[%emt 0:07:13]} Rxc7 {[%emt 0:00:02]} 38. Rc1 {[%emt 0:01:08]} Rxc1+ {[%emt 0:00:20]} 39. Kxc1 {[%emt 0:00:02]} 1/2-1/2

[Event "48th Indian U15-ch Open 2023"]
[Site "Jalgaon"]
[Date "2023.12.28"]
[Round "2.5"]
[White "Tirth Jayeshkumar Parmar"]
[Black "Vivaan Vijay Saraogi"]
[Result "0-1"]
[WhiteElo "1612"]
[BlackElo "1982"]
[PlyCount "92"]
[EventDate "2023.12.30"]
[EventType "swiss"]
[EventCountry "IND"]
[TimeControl "5400+30"]

1. e4 {[%emt 0:00:12]} c5 {[%emt 0:00:18]} 2. Nf3 {[%emt 0:00:15]} d6 {[%emt 0:00:08]} 3. Bb5+ {[%emt 0:00:21]} Nd7 {[%emt 0:00:27]} 4. d4 {[%emt 0:00:34]} cxd4 {[%emt 0:00:57]} 5. Qxd4 {[%emt 0:00:28]} a6 {[%emt 0:00:46]} 6. Bxd7+ {[%emt 0:00:21]} Qxd7 {[%emt 0:00:10]} 7. Nc3 {[%emt 0:07:22]} e5 {[%emt 0:06:15]} 8. Qd3 {[%emt 0:03:56]} f5 {[%emt 0:03:37]} 9. exf5 {[%emt 0:25:25]} Qxf5 {[%emt 0:10:06]} 10. Qe2 {[%emt 0:02:39]} Nf6 {[%emt 0:04:28]} 11. Bg5 {[%emt 0:03:16]} Be6 {[%emt 0:00:57]} 12. Bh4 {[%emt 0:05:31]} Rc8 {[%emt 0:03:01]} 13. O-O-O {[%emt 0:06:28]} Rc4 {[%emt 0:15:17]} 14. Bxf6 {[%emt 0:02:34]} gxf6 {[%emt 0:01:02]} 15. Nd5 {[%emt 0:02:33]} Rc5 {[%emt 0:04:12]} 16. Nc3 {[%emt 0:07:49]} d5 {[%emt 0:05:38]} 17. Kb1 {[%emt 0:01:18]} Rg8 {[%emt 0:08:50]} 18. h3 {[%emt 0:01:42]} Rxg2 {[%emt 0:02:27]} 19. Nh4 {[%emt 0:02:19]} Rxf2 {[%emt 0:01:01]} 20. Nxf5 {[%emt 0:01:12]} Rxe2 {[%emt 0:00:06]} 21. Nd4 {[%emt 0:05:42]} Rxc3 {[%emt 0:01:23]} 22. Nxe2 {[%emt 0:00:29]} Re3 {[%emt 0:00:18]} 23. Nc1 {[%emt 0:03:47]} Kd7 {[%emt 0:11:05]} 24. h4 {[%emt 0:03:07]} h5 {[%emt 0:01:30]} 25. Rdg1 {[%emt 0:04:05]} Bg4 {[%emt 0:00:46]} 26. Nd3 {[%emt 0:00:32]} f5 {[%emt 0:03:09]} 27. Re1 {[%emt 0:03:21]} Rxe1+ {[%emt 0:00:14]} 28. Rxe1 {[%emt 0:00:07]} e4 {[%emt 0:00:04]} 29. Nf4 {[%emt 0:00:48]} Kd6 {[%emt 0:00:21]} 30. c3 {[%emt 0:00:54]} Bh6 {[%emt 0:00:23]} 31. Rf1 {[%emt 0:01:20]} Bxf4 {[%emt 0:01:24]} 32. Rxf4 {[%emt 0:00:03]} Ke5 {[%emt 0:00:01]} 33. Rf1 {[%emt 0:00:12]} f4 {[%emt 0:00:24]} 34. Kc2 {[%emt 0:00:16]} f3 {[%emt 0:00:14]} 35. Kd2 {[%emt 0:00:16]} Kf4 {[%emt 0:00:08]} 36. Re1 {[%emt 0:02:09]} f2 {[%emt 0:00:30]} 37. Rf1 {[%emt 0:00:11]} e3+ {[%emt 0:00:17]} 38. Kd3 {[%emt 0:00:06]} Kf3 {[%emt 0:00:19]} 39. b4 {[%emt 0:00:17]} e2 {[%emt 0:00:09]} 40. Rxf2+ {[%emt 0:00:06]} Kxf2 {[%emt 0:00:07]} 41. Kd4 {[%emt 0:00:04]} e1=Q {[%emt 0:00:09]} 42. Kxd5 {[%emt 0:00:05]} Qxc3 {[%emt 0:00:08]} 43. a3 {[%emt 0:00:07]} Qc6+ {[%emt 0:00:17]} 44. Kd4 {[%emt 0:00:05]} b5 {[%emt 0:00:19]} 45. Ke5 {[%emt 0:00:13]} Ke3 {[%emt 0:00:05]} 46. a4 {[%emt 0:00:05]} Qe6# {[%emt 0:00:05]} 0-1